[Event "*** Titled Tuesday 3|2 Blitz"]
[Site "Chess.com"]
[Date "2016.05.03"]
[Round "4"]
[White "vovkcoach"]
[Black "Zurability"]
[Result "1/2-1/2"]
[WhiteElo "2529"]
[BlackElo "2418"]
[TimeControl "180+2"]
[EndTime "11:53:17 PDT"]
[Termination "Game drawn by agreement"]

1. d4 {[%clk 0:03:01.9]} 1... d6 {[%clk 0:03:00.9]} 2. c4 {[%clk 0:03:03.3]}
2... e5 {[%clk 0:03:01.6]} 3. dxe5 {[%clk 0:03:01]} 3... dxe5 {[%clk 0:03:03.5]}
4. Qxd8+ {[%clk 0:03:02.9]} 4... Kxd8 {[%clk 0:03:05.4]} 5. Nf3 {[%clk
0:03:03.8]} 5... f6 {[%clk 0:03:06.4]} 6. Rg1 {[%clk 0:03:02.8]} 6... Be6 {[%clk
0:03:06.1]} 7. b3 {[%clk 0:03:00.2]} 7... Nd7 {[%clk 0:03:07.4]} 8. g4 {[%clk
0:03:01]} 8... c6 {[%clk 0:03:07.1]} 9. Nc3 {[%clk 0:02:59.1]} 9... Kc7 {[%clk
0:03:01.1]} 10. Bb2 {[%clk 0:02:59.7]} 10... Nh6 {[%clk 0:02:59.8]} 11. g5
{[%clk 0:02:58.8]} 11... Nf7 {[%clk 0:03:00.9]} 12. gxf6 {[%clk 0:02:59.7]}
12... gxf6 {[%clk 0:03:02.3]} 13. O-O-O {[%clk 0:03:00.1]} 13... Nc5 {[%clk
0:02:57.4]} 14. e3 {[%clk 0:02:58.1]} 14... a5 {[%clk 0:02:57.2]} 15. Nd2 {[%clk
0:02:51.5]} 15... Bf5 {[%clk 0:02:35.8]} 16. Be2 {[%clk 0:02:47.3]} 16... a4
{[%clk 0:02:30.4]} 17. b4 {[%clk 0:02:44.6]} 17... a3 {[%clk 0:02:31.3]} 18.
bxc5 {[%clk 0:02:40.1]} 18... axb2+ {[%clk 0:02:31.7]} 19. Kxb2 {[%clk 0:02:42]}
19... Bxc5 {[%clk 0:02:18.9]} 20. Nde4 {[%clk 0:02:32.1]} 20... Ba3+ {[%clk
0:02:19.2]} 21. Kb3 {[%clk 0:02:20.9]} 21... Be7 {[%clk 0:02:19.4]} 22. Bh5
{[%clk 0:02:03.9]} 22... Raf8 {[%clk 0:01:17.1]} 23. Rg7 {[%clk 0:02:00.6]}
23... Be6 {[%clk 0:00:53.1]} 24. Nd5+ {[%clk 0:01:54.7]} 24... cxd5 {[%clk
0:00:53.4]} 25. cxd5 {[%clk 0:01:56.6]} 25... Bf5 {[%clk 0:00:54.9]} 26. d6+
{[%clk 0:01:41.7]} 26... Kd8 {[%clk 0:00:55.1]} 27. dxe7+ {[%clk 0:01:31.2]}
27... Kxe7 {[%clk 0:00:55.2]} 28. Nd6 {[%clk 0:01:17.4]} 28... Bg6 {[%clk
0:00:41.9]} 29. Bg4 {[%clk 0:01:04.6]} 29... Rhg8 {[%clk 0:00:35.5]} 30. Rxg8
{[%clk 0:00:45.2]} 30... Rxg8 {[%clk 0:00:37.4]} 31. Nc8+ {[%clk 0:00:39.9]}
31... Kf8 {[%clk 0:00:33.2]} 32. Be6 {[%clk 0:00:40]} 32... Rg7 {[%clk
0:00:27.7]} 33. Rd7 {[%clk 0:00:38.2]} 33... Ng5 {[%clk 0:00:27.3]} 34. Rd8+
{[%clk 0:00:37]} 34... Be8 {[%clk 0:00:28.2]} 35. Bd5 {[%clk 0:00:37.7]} 35...
Rd7 {[%clk 0:00:29.2]} 36. Rxd7 {[%clk 0:00:36.8]} 36... Bxd7 {[%clk 0:00:31.1]}
37. Nb6 {[%clk 0:00:37.4]} 37... Be6 {[%clk 0:00:16.2]} 38. Kc4 {[%clk
0:00:36.2]} 38... Ke7 {[%clk 0:00:16.8]} 39. Kc5 {[%clk 0:00:37.2]} 39... Nh3
{[%clk 0:00:14.8]} 40. a4 {[%clk 0:00:28.7]} 40... Nxf2 {[%clk 0:00:15.3]} 41.
Bxb7 {[%clk 0:00:29.8]} 41... Nd3+ {[%clk 0:00:14.3]} 42. Kb5 {[%clk 0:00:31.1]}
42... Kd6 {[%clk 0:00:11]} 43. a5 {[%clk 0:00:31.1]} 43... Nc5 {[%clk
0:00:12.3]} 44. Bf3 {[%clk 0:00:30.4]} 44... f5 {[%clk 0:00:13.4]} 45. a6 {[%clk
0:00:30.4]} 45... Nxa6 {[%clk 0:00:13.9]} 46. Kxa6 {[%clk 0:00:32.3]} 46... f4
{[%clk 0:00:15.7]} 47. exf4 {[%clk 0:00:31]} 47... exf4 {[%clk 0:00:17.6]} 48.
Kb5 {[%clk 0:00:32.7]} 48... Ke5 {[%clk 0:00:18.8]} 49. Kc5 {[%clk 0:00:33.7]}
49... Bf5 {[%clk 0:00:20.1]} 50. Nc4+ {[%clk 0:00:34.4]} 50... Kf6 {[%clk
0:00:21.2]} 51. Kd4 {[%clk 0:00:36.3]} 51... Kg5 {[%clk 0:00:22.7]} 52. Ke5
{[%clk 0:00:36.9]} 52... Bg6 {[%clk 0:00:23.6]} 53. Nd2 {[%clk 0:00:37.4]} 53...
Kh4 {[%clk 0:00:25]} 54. Kxf4 {[%clk 0:00:38.2]} 54... Kh3 {[%clk 0:00:26.3]}
55. Nf1 {[%clk 0:00:36]} 55... Bd3 {[%clk 0:00:27.8]} 56. Bg4+ {[%clk
0:00:24.7]} 56... Kg2 {[%clk 0:00:29.1]} 57. Ne3+ {[%clk 0:00:18.8]} 57... Kxh2
{[%clk 0:00:30.2]} 58. Kf3 {[%clk 0:00:20.7]} 58... Bb5 {[%clk 0:00:27]} 59. Kf2
{[%clk 0:00:21.4]} 59... Bc6 {[%clk 0:00:26.1]} 60. Nf1+ {[%clk 0:00:21.8]}
60... Kh1 {[%clk 0:00:27.4]} 61. Bh5 {[%clk 0:00:21.8]} 61... Bb7 {[%clk
0:00:28.6]} 62. Kg3 {[%clk 0:00:19.6]} 62... h6 {[%clk 0:00:29.8]} 63. Ne3
{[%clk 0:00:21]} 63... Ba8 {[%clk 0:00:31.1]} 64. Be2 {[%clk 0:00:19.5]} 64...
Bb7 {[%clk 0:00:32.2]} 65. Ng4 {[%clk 0:00:19.5]} 65... Ba8 {[%clk 0:00:33.8]}
66. Nxh6 {[%clk 0:00:20.3]} 66... Bb7 {[%clk 0:00:35.4]} 67. Ng4 {[%clk
0:00:21.4]} 67... Ba8 {[%clk 0:00:36.9]} 68. Kf2 {[%clk 0:00:22]} 68... Bb7
{[%clk 0:00:37.5]} 69. Ne3 {[%clk 0:00:19.9]} 69... Ba8 {[%clk 0:00:38.7]} 70.
Nf1 {[%clk 0:00:21.3]} 70... Bb7 {[%clk 0:00:40]} 71. Bb5 {[%clk 0:00:21.9]}
71... Ba8 {[%clk 0:00:41]} 72. Kg3 {[%clk 0:00:23.1]} 72... Bb7 {[%clk
0:00:42.3]} 73. Nd2 {[%clk 0:00:24.6]} 73... Ba8 {[%clk 0:00:43.6]} 74. Nb3
{[%clk 0:00:25.7]} 74... Bb7 {[%clk 0:00:45.2]} 75. Nc5 {[%clk 0:00:26.6]} 75...
Ba8 {[%clk 0:00:46.8]} 76. Ba6 {[%clk 0:00:25.5]} 76... Bd5 {[%clk 0:00:47.8]}
77. Nd3 {[%clk 0:00:26.6]} 77... Ba8 {[%clk 0:00:48.4]} 78. Nf2+ {[%clk
0:00:27.7]} 78... Kg1 {[%clk 0:00:48.7]} 79. Nh3+ {[%clk 0:00:29.5]} 79... Kh1
{[%clk 0:00:50.1]} 80. Ng5 {[%clk 0:00:31.4]} 80... Kg1 {[%clk 0:00:50.8]} 81.
Ne6 {[%clk 0:00:31.9]} 81... Kh1 {[%clk 0:00:51]} 82. Nc7 {[%clk 0:00:32.4]}
82... Bc6 {[%clk 0:00:52.2]} 83. Bc8 {[%clk 0:00:31.5]} 83... Be4 {[%clk
0:00:52.5]} 84. Kf4 {[%clk 0:00:31.2]} 84... Bc6 {[%clk 0:00:53.5]} 85. Kg3
{[%clk 0:00:31.6]} 85... Be4 {[%clk 0:00:54.3]} 86. Nb5 {[%clk 0:00:31.4]} 86...
Bc6 {[%clk 0:00:54.8]} 87. Nd4 {[%clk 0:00:32.5]} 87... Ba8 {[%clk 0:00:55.9]}
88. Bh3 {[%clk 0:00:32.4]} 88... Bb7 {[%clk 0:00:56.4]} 89. Ne2 {[%clk
0:00:30.8]} 89... Ba8 {[%clk 0:00:57]} 90. Kf2 {[%clk 0:00:29.2]} 90... Bb7
{[%clk 0:00:57.5]} 91. Bf1 {[%clk 0:00:29.3]} 91... Ba8 {[%clk 0:00:58.6]}
1/2-1/2

[Event "*** Titled Tuesday 3|2 Blitz"]
[Site "Chess.com"]
[Date "2016.05.03"]
[Round "4"]
[White "Zlatan56"]
[Black "hypert"]
[Result "1-0"]
[WhiteElo "2570"]
[BlackElo "2357"]
[TimeControl "180+2"]
[EndTime "11:53:18 PDT"]
[Termination "Zlatan56 won by resignation"]

1. g3 {[%clk 0:03:01.9]} 1... d5 {[%clk 0:03:00.3]} 2. Bg2 {[%clk 0:03:01.2]}
2... Bf5 {[%clk 0:03:00.9]} 3. c4 {[%clk 0:03:00]} 3... e6 {[%clk 0:02:24.2]} 4.
Qb3 {[%clk 0:02:56.6]} 4... Nc6 {[%clk 0:02:25.1]} 5. Nf3 {[%clk 0:02:53.2]}
5... dxc4 {[%clk 0:02:13.5]} 6. Qxc4 {[%clk 0:02:53.4]} 6... Nf6 {[%clk
0:02:13.5]} 7. O-O {[%clk 0:02:52.5]} 7... Bd6 {[%clk 0:02:13.6]} 8. d3 {[%clk
0:02:49.8]} 8... e5 {[%clk 0:02:12]} 9. Nc3 {[%clk 0:02:50]} 9... a6 {[%clk
0:02:12.2]} 10. Bg5 {[%clk 0:02:48.2]} 10... Be6 {[%clk 0:02:09.9]} 11. Qa4
{[%clk 0:02:46.1]} 11... O-O {[%clk 0:02:07.2]} 12. Rac1 {[%clk 0:02:46.1]}
12... h6 {[%clk 0:02:06.7]} 13. Bxf6 {[%clk 0:02:23.8]} 13... Qxf6 {[%clk
0:02:08.6]} 14. Ne4 {[%clk 0:02:24.1]} 14... Qe7 {[%clk 0:02:09.6]} 15. a3
{[%clk 0:02:24.8]} 15... Bd7 {[%clk 0:02:08.6]} 16. Qb3 {[%clk 0:02:23.6]} 16...
Rab8 {[%clk 0:02:07.5]} 17. Nxd6 {[%clk 0:02:15.4]} 17... cxd6 {[%clk
0:02:08.1]} 18. e3 {[%clk 0:02:13.1]} 18... Be6 {[%clk 0:02:05.9]} 19. Qb6
{[%clk 0:02:12.8]} 19... Qd8 {[%clk 0:02:04.9]} 20. Qxd8 {[%clk 0:02:13.4]}
20... Rfxd8 {[%clk 0:02:06.8]} 21. Nd2 {[%clk 0:02:14.9]} 21... Rdc8 {[%clk
0:02:05.5]} 22. Rc3 {[%clk 0:02:14]} 22... Ne7 {[%clk 0:02:05.2]} 23. Rfc1
{[%clk 0:02:11.9]} 23... b5 {[%clk 0:02:00.6]} 24. Rc7 {[%clk 0:02:03.3]} 24...
Kf8 {[%clk 0:02:00.9]} 25. Ne4 {[%clk 0:01:57.1]} 25... Rxc7 {[%clk 0:01:56.6]}
26. Rxc7 {[%clk 0:01:59]} 26... Rc8 {[%clk 0:01:57.6]} 27. Rxc8+ {[%clk
0:01:52.5]} 27... Nxc8 {[%clk 0:01:58.1]} 28. Nc3 {[%clk 0:01:54]} 28... Ne7
{[%clk 0:01:54.9]} 29. Kf1 {[%clk 0:01:41.5]} 29... Ke8 {[%clk 0:01:54.5]} 30.
Ke2 {[%clk 0:01:40.8]} 30... Kd8 {[%clk 0:01:54.2]} 31. f4 {[%clk 0:01:31.5]}
31... f6 {[%clk 0:01:51.1]} 32. d4 {[%clk 0:01:30.5]} 32... exd4 {[%clk
0:01:48.5]} 33. exd4 {[%clk 0:01:30.8]} 33... Kc7 {[%clk 0:01:46.5]} 34. Be4
{[%clk 0:01:26.2]} 34... Nf5 {[%clk 0:01:39.2]} 35. Bxf5 {[%clk 0:01:23.7]}
35... Bxf5 {[%clk 0:01:40.4]} 36. Ke3 {[%clk 0:01:17.2]} 36... Kc6 {[%clk
0:01:37.7]} 37. b4 {[%clk 0:01:15.4]} 37... d5 {[%clk 0:01:34]} 38. Nd1 {[%clk
0:01:08.7]} 38... h5 {[%clk 0:01:29.8]} 39. Kf2 {[%clk 0:01:07.9]} 39... Be4
{[%clk 0:01:28]} 40. Ke3 {[%clk 0:01:00.7]} 40... Kb6 {[%clk 0:01:17.5]} 41. Nf2
{[%clk 0:01:01.1]} 41... Bf5 {[%clk 0:01:16.1]} 42. h3 {[%clk 0:01:01.5]} 42...
a5 {[%clk 0:01:15.4]} 43. g4 {[%clk 0:01:01.4]} 43... hxg4 {[%clk 0:01:16.5]}
44. hxg4 {[%clk 0:01:03.3]} 44... Bd7 {[%clk 0:01:16.9]} 45. f5 {[%clk
0:00:58.7]} 45... axb4 {[%clk 0:01:15.5]} 46. axb4 {[%clk 0:01:00.6]} 46... Kc6
{[%clk 0:01:12.8]} 47. Nd3 {[%clk 0:01:00.5]} 47... Kd6 {[%clk 0:01:11.8]} 48.
Nf4 {[%clk 0:01:01.3]} 48... Be8 {[%clk 0:01:12.6]} 49. Kf3 {[%clk 0:00:56.4]}
49... Bf7 {[%clk 0:01:10.2]} 50. Kg3 {[%clk 0:00:54]} 50... Ke7 {[%clk
0:01:11.2]} 51. Kh4 {[%clk 0:00:49.1]} 51... Kf8 {[%clk 0:01:10.3]} 52. g5
{[%clk 0:00:49.3]} 52... fxg5+ {[%clk 0:01:08.3]} 53. Kxg5 {[%clk 0:00:51.2]}
53... Ke7 {[%clk 0:01:08.5]} 54. Ng6+ {[%clk 0:00:49]} 54... Ke8 {[%clk
0:01:02.2]} 55. Ne5 {[%clk 0:00:49]} 55... Ke7 {[%clk 0:01:02.5]} 56. Nd3 {[%clk
0:00:41.5]} 56... Be8 {[%clk 0:01:01.7]} 57. Nf4 {[%clk 0:00:41.9]} 57... Bf7
{[%clk 0:01:01.9]} 58. Ne2 {[%clk 0:00:42.7]} 58... Be8 {[%clk 0:01:02.3]} 59.
Nc3 {[%clk 0:00:41.4]} 59... Kd6 {[%clk 0:01:00]} 60. Nd1 {[%clk 0:00:42.2]}
60... Ke7 {[%clk 0:01:00.5]} 61. Ne3 {[%clk 0:00:42.8]} 61... Bf7 {[%clk
0:01:00.7]} 62. Kf4 {[%clk 0:00:37.2]} 62... Kd6 {[%clk 0:00:57.5]} 63. Ng2
{[%clk 0:00:30.4]} 63... Be8 {[%clk 0:00:54.2]} 64. Kg5 {[%clk 0:00:26.5]} 64...
Ke7 {[%clk 0:00:54]} 65. Nf4 {[%clk 0:00:23.7]} 65... Bf7 {[%clk 0:00:54.7]} 66.
Ng6+ {[%clk 0:00:24.5]} 66... Ke8 {[%clk 0:00:54.3]} 67. Kf4 {[%clk 0:00:22.3]}
67... Kd7 {[%clk 0:00:49.2]} 68. Ke5 {[%clk 0:00:22.6]} 68... Bg8 {[%clk
0:00:35.7]} 69. Nf4 {[%clk 0:00:22.8]} 69... Kc6 {[%clk 0:00:31.1]} 70. Ne6
{[%clk 0:00:22.1]} 70... Kd7 {[%clk 0:00:28.1]} 71. Nxg7 {[%clk 0:00:21.6]}
71... Ke7 {[%clk 0:00:28.4]} 72. Nh5 {[%clk 0:00:22]} 72... Kd7 {[%clk 0:00:26]}
73. Nf4 {[%clk 0:00:23.9]} 73... Kc6 {[%clk 0:00:26.9]} 74. f6 {[%clk
0:00:19.4]} 74... Bf7 {[%clk 0:00:27.1]} 75. Ne6 {[%clk 0:00:20.2]} 75... Kd7
{[%clk 0:00:27]} 76. Ng5 {[%clk 0:00:21.4]} 76... Bh5 {[%clk 0:00:26.3]} 77.
Kxd5 {[%clk 0:00:21.4]} 77... Be2 {[%clk 0:00:25.5]} 78. Kc5 {[%clk 0:00:19.8]}
78... Bc4 {[%clk 0:00:21.3]} 79. d5 {[%clk 0:00:20.6]} 79... Be2 {[%clk
0:00:22.2]} 80. f7 {[%clk 0:00:19.1]} 80... Ke7 {[%clk 0:00:21.9]} 81. d6+
{[%clk 0:00:20.2]} 81... Kf8 {[%clk 0:00:23.1]} 82. d7 {[%clk 0:00:21]} 1-0

[Event "*** Titled Tuesday 3|2 Blitz"]
[Site "Chess.com"]
[Date "2016.05.03"]
[Round "5"]
[White "Gevorg_Harutjunyan"]
[Black "exoticprincess"]
[Result "1/2-1/2"]
[WhiteElo "2614"]
[BlackElo "2805"]
[TimeControl "180+2"]
[EndTime "11:57:15 PDT"]
[Termination "Game drawn by repetition"]

1. e4 {[%clk 0:03:01.2]} 1... c6 {[%clk 0:03:01.3]} 2. d4 {[%clk 0:03:02.2]}
2... d5 {[%clk 0:03:02.6]} 3. Nd2 {[%clk 0:03:03.5]} 3... dxe4 {[%clk
0:03:02.4]} 4. Nxe4 {[%clk 0:03:05.4]} 4... Bf5 {[%clk 0:03:04]} 5. Ng3 {[%clk
0:03:06.4]} 5... Bg6 {[%clk 0:03:05.3]} 6. h4 {[%clk 0:03:07.7]} 6... h6 {[%clk
0:03:06.7]} 7. Nf3 {[%clk 0:03:09]} 7... Nd7 {[%clk 0:03:07.8]} 8. h5 {[%clk
0:03:10.3]} 8... Bh7 {[%clk 0:03:08.8]} 9. Bd3 {[%clk 0:03:11.9]} 9... Bxd3
{[%clk 0:03:10.3]} 10. Qxd3 {[%clk 0:03:13.8]} 10... e6 {[%clk 0:03:12]} 11. Bf4
{[%clk 0:03:14.6]} 11... Ngf6 {[%clk 0:03:12.6]} 12. O-O-O {[%clk 0:03:15]}
12... Be7 {[%clk 0:03:06.5]} 13. Ne4 {[%clk 0:03:13.9]} 13... Nxe4 {[%clk
0:03:06.5]} 14. Qxe4 {[%clk 0:03:14.8]} 14... Nf6 {[%clk 0:03:07.6]} 15. Qe2
{[%clk 0:03:15.1]} 15... Qd5 {[%clk 0:03:07.6]} 16. c4 {[%clk 0:03:14.9]} 16...
Qe4 {[%clk 0:03:08.5]} 17. Qxe4 {[%clk 0:03:15.1]} 17... Nxe4 {[%clk 0:03:09.4]}
18. Be3 {[%clk 0:03:16.3]} 18... Nf6 {[%clk 0:03:07.2]} 19. Ne5 {[%clk
0:03:14.6]} 19... Rd8 {[%clk 0:02:54.7]} 20. f3 {[%clk 0:03:13.8]} 20... Nd7
{[%clk 0:02:51.9]} 21. g4 {[%clk 0:03:10.3]} 21... Bd6 {[%clk 0:02:44.5]} 22. f4
{[%clk 0:03:05.5]} 22... Nf6 {[%clk 0:02:44.9]} 23. Rhg1 {[%clk 0:03:00.4]}
23... Ke7 {[%clk 0:02:37.4]} 24. Kc2 {[%clk 0:03:00.9]} 24... Bc7 {[%clk
0:02:21.9]} 25. b3 {[%clk 0:02:49.4]} 25... Bb6 {[%clk 0:02:21.6]} 26. Rd3
{[%clk 0:02:43.4]} 26... Nd7 {[%clk 0:02:12.3]} 27. Nf3 {[%clk 0:02:38.3]} 27...
Nf6 {[%clk 0:02:10.2]} 28. Ne5 {[%clk 0:02:38.2]} 28... Nd7 {[%clk 0:02:11.5]}
29. Nf3 {[%clk 0:02:38.6]} 29... Nf6 {[%clk 0:02:12.5]} 30. Ne5 {[%clk 0:02:39]}
1/2-1/2

[Event "*** Titled Tuesday 3|2 Blitz"]
[Site "Chess.com"]
[Date "2016.05.03"]
[Round "5"]
[White "YaWaleriy"]
[Black "Aygehovit1992"]
[Result "0-1"]
[WhiteElo "2182"]
[BlackElo "2486"]
[TimeControl "180+2"]
[EndTime "11:58:02 PDT"]
[Termination "Aygehovit1992 won by resignation"]

1. d4 {[%clk 0:03:01.9]} 1... Nf6 {[%clk 0:02:59.8]} 2. c4 {[%clk 0:03:02.2]}
2... g6 {[%clk 0:03:01.2]} 3. Nc3 {[%clk 0:03:02.6]} 3... d5 {[%clk 0:03:01.9]}
4. cxd5 {[%clk 0:03:02.6]} 4... Nxd5 {[%clk 0:03:02.2]} 5. e4 {[%clk 0:03:04.1]}
5... Nxc3 {[%clk 0:03:02.8]} 6. bxc3 {[%clk 0:03:05.7]} 6... Bg7 {[%clk
0:03:02.8]} 7. Bc4 {[%clk 0:03:07.1]} 7... c5 {[%clk 0:03:03.7]} 8. Ne2 {[%clk
0:03:08.4]} 8... O-O {[%clk 0:03:04.5]} 9. O-O {[%clk 0:03:08.4]} 9... Nc6
{[%clk 0:03:06.1]} 10. Be3 {[%clk 0:03:09.5]} 10... Bg4 {[%clk 0:03:07.1]} 11.
f3 {[%clk 0:03:10.1]} 11... Bd7 {[%clk 0:03:08.7]} 12. Qd2 {[%clk 0:02:59.8]}
12... Qa5 {[%clk 0:03:07.4]} 13. Rfd1 {[%clk 0:02:55.5]} 13... Rac8 {[%clk
0:03:04.9]} 14. Rab1 {[%clk 0:02:48.3]} 14... b6 {[%clk 0:03:01.7]} 15. Bd3
{[%clk 0:02:46.3]} 15... cxd4 {[%clk 0:03:00.7]} 16. cxd4 {[%clk 0:02:46.6]}
16... Qxd2 {[%clk 0:03:01.4]} 17. Rxd2 {[%clk 0:02:47.7]} 17... Na5 {[%clk
0:03:03]} 18. Kf2 {[%clk 0:02:37.8]} 18... Nc4 {[%clk 0:03:01.4]} 19. Bxc4
{[%clk 0:02:38.5]} 19... Rxc4 {[%clk 0:03:02.4]} 20. Rc1 {[%clk 0:02:37.1]}
20... Rfc8 {[%clk 0:03:02.9]} 21. Rxc4 {[%clk 0:02:37.4]} 21... Rxc4 {[%clk
0:03:03.9]} 22. d5 {[%clk 0:02:33.4]} 22... Kf8 {[%clk 0:03:01.8]} 23. Nd4
{[%clk 0:02:30.7]} 23... Ke8 {[%clk 0:03:01.7]} 24. Rc2 {[%clk 0:02:26.4]} 24...
Rxc2+ {[%clk 0:03:01.2]} 25. Nxc2 {[%clk 0:02:26.6]} 25... e5 {[%clk 0:02:51.7]}
26. Ke2 {[%clk 0:02:25.8]} 26... f5 {[%clk 0:02:50.1]} 27. Kd2 {[%clk 0:02:25]}
27... f4 {[%clk 0:02:51.1]} 28. Bf2 {[%clk 0:02:25.8]} 28... Bf8 {[%clk
0:02:51.6]} 29. g3 {[%clk 0:02:18.5]} 29... g5 {[%clk 0:02:50.9]} 30. gxf4
{[%clk 0:02:18.5]} 30... gxf4 {[%clk 0:02:52]} 31. Ne1 {[%clk 0:02:13.8]} 31...
Bb4+ {[%clk 0:02:51.4]} 32. Kc2 {[%clk 0:02:14.9]} 32... Ba4+ {[%clk 0:02:50.2]}
33. Kb2 {[%clk 0:02:15.9]} 33... Bd1 {[%clk 0:02:29.5]} 34. Kc1 {[%clk
0:02:12.9]} 34... Bxe1 {[%clk 0:02:28.9]} 35. Bxe1 {[%clk 0:02:12.8]} 35... Bxf3
{[%clk 0:02:30.5]} 36. Bh4 {[%clk 0:02:13.5]} 36... Bxe4 {[%clk 0:02:31]} 37.
Bf6 {[%clk 0:02:14.3]} 37... Bxd5 {[%clk 0:02:32.1]} 38. Bxe5 {[%clk 0:02:15.4]}
38... f3 {[%clk 0:02:33.5]} 39. Bd4 {[%clk 0:02:13.7]} 39... Bxa2 {[%clk
0:02:34.3]} 0-1

[Event "*** Titled Tuesday 3|2 Blitz"]
[Site "Chess.com"]
[Date "2016.05.03"]
[Round "5"]
[White "Badouuu"]
[Black "Iball95"]
[Result "0-1"]
[WhiteElo "2001"]
[BlackElo "2490"]
[TimeControl "180+2"]
[EndTime "11:58:03 PDT"]
[Termination "Iball95 won by resignation"]

1. e4 {[%clk 0:02:55.8]} 1... e6 {[%clk 0:02:57.8]} 2. d4 {[%clk 0:02:50.9]}
2... d5 {[%clk 0:02:56.8]} 3. Nd2 {[%clk 0:02:51.1]} 3... Nc6 {[%clk 0:02:57.1]}
4. c3 {[%clk 0:02:49.6]} 4... e5 {[%clk 0:02:55]} 5. exd5 {[%clk 0:02:50.4]}
5... Qxd5 {[%clk 0:02:54.1]} 6. dxe5 {[%clk 0:02:45]} 6... Nxe5 {[%clk 0:02:48]}
7. Ngf3 {[%clk 0:02:42]} 7... Nf6 {[%clk 0:02:45.2]} 8. Qe2 {[%clk 0:02:41.4]}
8... Bd6 {[%clk 0:02:41.4]} 9. Nxe5 {[%clk 0:02:40.1]} 9... Qxe5 {[%clk
0:02:43.3]} 10. Qxe5+ {[%clk 0:02:39.8]} 10... Bxe5 {[%clk 0:02:45.2]} 11. Bd3
{[%clk 0:02:40.8]} 11... O-O {[%clk 0:02:45.3]} 12. O-O {[%clk 0:02:41.5]} 12...
Rd8 {[%clk 0:02:37.7]} 13. Bc2 {[%clk 0:02:42.2]} 13... Be6 {[%clk 0:02:38.3]}
14. Nf3 {[%clk 0:02:41.2]} 14... Bd6 {[%clk 0:02:39.5]} 15. Bg5 {[%clk
0:02:40.4]} 15... a5 {[%clk 0:02:29]} 16. Nd4 {[%clk 0:02:33.6]} 16... Bd5
{[%clk 0:02:21.4]} 17. Bb3 {[%clk 0:02:29.7]} 17... Be4 {[%clk 0:02:13.8]} 18.
Rfe1 {[%clk 0:02:22.6]} 18... Bg6 {[%clk 0:02:12.6]} 19. Nb5 {[%clk 0:02:22]}
19... a4 {[%clk 0:02:10.4]} 20. Bc4 {[%clk 0:02:13]} 20... c6 {[%clk 0:02:03.8]}
21. Nxd6 {[%clk 0:02:11.4]} 21... Rxd6 {[%clk 0:02:05.7]} 22. Re7 {[%clk
0:02:10.5]} 22... b5 {[%clk 0:02:05.1]} 23. Bf1 {[%clk 0:02:10.2]} 23... h6
{[%clk 0:01:51.5]} 24. Bf4 {[%clk 0:02:10]} 24... Rd7 {[%clk 0:01:51.7]} 25.
Rae1 {[%clk 0:02:08.6]} 25... Rxe7 {[%clk 0:01:49.3]} 26. Rxe7 {[%clk
0:02:08.2]} 26... Nd5 {[%clk 0:01:50.8]} 27. Bd6 {[%clk 0:02:07.7]} 27... Nxe7
{[%clk 0:01:49.7]} 28. Bxe7 {[%clk 0:02:09.6]} 28... Re8 {[%clk 0:01:51.3]} 29.
Ba3 {[%clk 0:02:11.5]} 29... Re1 {[%clk 0:01:52.4]} 30. f3 {[%clk 0:02:13]}
30... Bd3 {[%clk 0:01:53.7]} 0-1

[Event "*** Titled Tuesday 3|2 Blitz"]
[Site "Chess.com"]
[Date "2016.05.03"]
[Round "5"]
[White "Ginger_GM"]
[Black "yian123"]
[Result "1-0"]
[WhiteElo "2556"]
[BlackElo "2424"]
[TimeControl "180+2"]
[EndTime "11:59:09 PDT"]
[Termination "Ginger_GM won by resignation"]

1. e4 {[%clk 0:03:01.9]} 1... e5 {[%clk 0:03:00.8]} 2. f4 {[%clk 0:03:02.7]}
2... exf4 {[%clk 0:02:58.6]} 3. Bc4 {[%clk 0:03:02.6]} 3... Ne7 {[%clk
0:02:57.1]} 4. Nc3 {[%clk 0:02:58]} 4... Ng6 {[%clk 0:02:53.7]} 5. Nf3 {[%clk
0:02:53.8]} 5... Be7 {[%clk 0:02:53]} 6. O-O {[%clk 0:02:52.2]} 6... c6 {[%clk
0:02:53.6]} 7. d4 {[%clk 0:02:52.1]} 7... O-O {[%clk 0:02:49.6]} 8. Ne5 {[%clk
0:02:36.9]} 8... Nxe5 {[%clk 0:02:38.4]} 9. dxe5 {[%clk 0:02:37.3]} 9... Bg5
{[%clk 0:02:34.9]} 10. Bxf4 {[%clk 0:02:22]} 10... b5 {[%clk 0:02:29.2]} 11. Bb3
{[%clk 0:02:14]} 11... a5 {[%clk 0:02:29.6]} 12. Qh5 {[%clk 0:02:04]} 12... Bxf4
{[%clk 0:02:12.4]} 13. Rxf4 {[%clk 0:02:04.5]} 13... g6 {[%clk 0:02:13.6]} 14.
Qh6 {[%clk 0:02:05]} 14... a4 {[%clk 0:02:08.1]} 15. Rh4 {[%clk 0:01:06.5]}
15... Qxh4 {[%clk 0:02:08]} 16. Qxh4 {[%clk 0:01:06]} 16... axb3 {[%clk
0:02:09.4]} 17. cxb3 {[%clk 0:01:07]} 17... d6 {[%clk 0:02:04.1]} 18. exd6
{[%clk 0:01:07.8]} 18... Be6 {[%clk 0:02:05.5]} 19. e5 {[%clk 0:01:08.9]} 19...
Nd7 {[%clk 0:02:07]} 20. Ne4 {[%clk 0:01:09.5]} 20... h5 {[%clk 0:02:02]} 21.
Qg5 {[%clk 0:01:05.6]} 21... Bd5 {[%clk 0:01:56.6]} 22. Ng3 {[%clk 0:00:57.7]}
22... Rae8 {[%clk 0:01:53.1]} 23. Re1 {[%clk 0:00:56.1]} 23... Kh7 {[%clk
0:01:47.5]} 24. Nxh5 {[%clk 0:00:55.6]} 24... gxh5 {[%clk 0:01:48.2]} 25. Qxh5+
{[%clk 0:00:56.6]} 25... Kg7 {[%clk 0:01:49.8]} 26. Qg5+ {[%clk 0:00:57.6]}
26... Kh7 {[%clk 0:01:48.5]} 27. Re3 {[%clk 0:00:58.6]} 1-0

[Event "*** Titled Tuesday 3|2 Blitz"]
[Site "Chess.com"]
[Date "2016.05.03"]
[Round "5"]
[White "Spas_Kozhuharov"]
[Black "severomorskij"]
[Result "0-1"]
[WhiteElo "2481"]
[BlackElo "2605"]
[TimeControl "180+2"]
[EndTime "11:59:13 PDT"]
[Termination "severomorskij won by resignation"]

1. d4 {[%clk 0:03:01.9]} 1... Nf6 {[%clk 0:03:00.2]} 2. c4 {[%clk 0:03:02.4]}
2... e6 {[%clk 0:03:01.4]} 3. Nc3 {[%clk 0:03:03.2]} 3... Bb4 {[%clk 0:03:01.6]}
4. Qc2 {[%clk 0:03:04.6]} 4... d5 {[%clk 0:03:00.3]} 5. cxd5 {[%clk 0:03:03]}
5... exd5 {[%clk 0:03:01.1]} 6. Bg5 {[%clk 0:03:03.6]} 6... c5 {[%clk
0:02:58.3]} 7. a3 {[%clk 0:02:55.2]} 7... Bxc3+ {[%clk 0:02:56.2]} 8. bxc3
{[%clk 0:02:53]} 8... cxd4 {[%clk 0:02:42.1]} 9. cxd4 {[%clk 0:02:52.6]} 9...
Nc6 {[%clk 0:02:43.2]} 10. Nf3 {[%clk 0:02:51.9]} 10... O-O {[%clk 0:02:42.9]}
11. e3 {[%clk 0:02:50]} 11... Qa5+ {[%clk 0:02:42]} 12. Qd2 {[%clk 0:02:49.3]}
12... Ne4 {[%clk 0:02:38.9]} 13. Qxa5 {[%clk 0:02:49.2]} 13... Nxa5 {[%clk
0:02:40.3]} 14. Be7 {[%clk 0:02:40.2]} 14... Re8 {[%clk 0:02:40.7]} 15. Bb4
{[%clk 0:02:41]} 15... Nc4 {[%clk 0:02:36.5]} 16. a4 {[%clk 0:02:27.4]} 16... a5
{[%clk 0:02:31.7]} 17. Bd2 {[%clk 0:02:07.6]} 17... Bf5 {[%clk 0:02:04.8]} 18.
Bxc4 {[%clk 0:02:00.3]} 18... dxc4 {[%clk 0:02:04.9]} 19. Ne5 {[%clk 0:01:57.9]}
19... c3 {[%clk 0:01:57.9]} 20. Bc1 {[%clk 0:01:58.4]} 20... Rac8 {[%clk
0:01:52.9]} 21. f3 {[%clk 0:01:57.2]} 21... Nd6 {[%clk 0:01:40.6]} 22. e4 {[%clk
0:01:54.9]} 22... f6 {[%clk 0:01:25.9]} 23. Nd3 {[%clk 0:01:29.6]} 23... Nxe4
{[%clk 0:01:24.4]} 24. fxe4 {[%clk 0:01:24.5]} 24... Bxe4 {[%clk 0:01:24.8]} 25.
Nf2 {[%clk 0:01:17.4]} 25... Bxg2+ {[%clk 0:01:21.2]} 26. Kd1 {[%clk 0:01:18.9]}
26... Bf3+ {[%clk 0:01:19.5]} 0-1